[Event "12th SRB-ch Women 2018"]
[Site "Kragujevac"]
[Date "2018.03.25"]
[Round "9"]
[White "Milosevic, Jovana"]
[Black "Blagojevic, Tijana"]
[Result "1/2-1/2"]
[ECO "D12"]
[WhiteElo "2109"]
[BlackElo "2249"]
[Annotator "NA"]
[PlyCount "153"]
[EventDate "2018.??.??"]
[EventType "tourn"]
[EventCountry "SRB"]
[SourceTitle "playchess.com"]
[Source "ChessBase"]
[SourceQuality "1"]
[TimeControl "40/5400+30:1800+30"]

1. Nf3 {[%emt 0:00:00]} d5 {[%emt 0:00:06]} 2. d4 {[%emt 0:00:00]} Nf6 {[%emt 0:00:07]} 3. c4 {[%emt 0:00:00]} c6 {[%emt 0:00:05]} 4. e3 {[%emt 0:00:00]} Bf5 {[%emt 0:00:14]} 5. Nc3 {[%emt 0:00:09]} e6 {[%emt 0:00:08]} 6. Be2 {[%emt 0:00:35]} h6 {[%emt 0:00:23]} 7. O-O {[%emt 0:00:21]} Nbd7 {[%emt 0:00:12] LiveBook: 81 Games} 8. b3 {[%emt 0:02:07]} Bd6 {[%emt 0:00:20]} 9. Bb2 {[%emt 0:00:11] D12: Slav Defence: 3 Nf3 Nf6 4 e3 Bf5} O-O {[%emt 0:00:28]} 10. Qc1 {[%emt 0:03:24]} (10. Rc1 Qe7 11. h3 Ne4 12. Bd3 Nxc3 13. Bxc3 Bxd3 14. Qxd3 Bb4 15. Bxb4 Qxb4 16. e4 dxe4 17. Qxe4 {1-0 (28) Radjabov,T (2788)-Chadaev,N (2580) Astana 2012}) 10... Qe7 {[%emt 0:02:27]} 11. a4 {[%emt 0:00:08]} a5 $146 {[%emt 0:02:28]} ({Find the theoretical novelty and annotate with similar games:} 11... Rac8 12. Ba3 e5 13. dxe5 Nxe5 14. Nxe5 Qxe5 15. Bxd6 Qxd6 16. Qd2 Qb4 {½-½ (56) Schaffarth,P (2165)-Khanukov,B (2340) Bad Bertrich 2003}) 12. Ba3 {[%emt 0:02:26]} Rfe8 {[%emt 0:02:23]} 13. Bxd6 {[%emt 0:04:34]} Qxd6 {[%emt 0:00:05]} 14. Rd1 {[%emt 0:00:53]} Rad8 {[%emt 0:01:58]} 15. Qb2 {[%emt 0:00:45]} Bh7 {[%emt 0:07:14]} 16. Rac1 {[%emt 0:00:58]} Ne4 {[%emt 0:06:11]} 17. Nxe4 {[%emt 0:03:56]} Bxe4 {[%emt 0:00:52]} 18. Ne5 {[%emt 0:06:25]} Nb8 {[%emt 0:05:10]} 19. Bh5 {[%emt 0:30:01]} Re7 {[%emt 0:01:33]} 20. Qd2 {[%emt 0:09:18]} f6 {[%emt 0:01:58]} 21. Ng6 {[%emt 0:01:23]} Bxg6 {[%emt 0:00:20]} 22. Bxg6 {[%emt 0:00:04]} Qc7 {[%emt 0:03:22]} 23. e4 {[%emt 0:00:25]} ({White should play} 23. cxd5 $16 exd5 24. b4) 23... dxc4 {[%emt 0:06:19]} 24. bxc4 {[%emt 0:00:10]} Red7 {[%emt 0:07:53]} 25. d5 {[%emt 0:04:24]} Na6 {[%emt 0:00:59]} 26. Qe3 {[%emt 0:03:29]} Nb4 {[%emt 0:02:48]} 27. Bh5 {[%emt 0:00:24]} Qe5 {[%emt 0:06:16]} 28. Bg4 {[%emt 0:00:39]} f5 {[%emt 0:04:16]} 29. f4 {[%emt 0:06:35]} Qf6 {[%emt 0:00:22]} 30. e5 {[%emt 0:10:21]} Qf7 {[%emt 0:02:00]} (30... Qf8 $15 31. dxc6 (31. dxe6 Rd3 $19) 31... Nxc6 32. Rxd7 Rxd7) 31. dxc6 {[%emt 0:02:56]} (31. dxe6 $14 Qxe6 32. Rxd7 Rxd7 33. Be2) 31... Nxc6 {[%emt 0:01:25]} 32. Rxd7 {[%emt 0:01:15]} Qxd7 {[%emt 0:00:57]} 33. Rd1 $19 {[%emt 0:00:57]} (33. Bf3 $17) 33... Qc7 {[%emt 0:00:14]} 34. Rxd8+ {[%emt 0:01:13]} Nxd8 {[%emt 0:01:04]} 35. Be2 {[%emt 0:00:09]} b6 {[%emt 0:01:29]} 36. Bf3 {[%emt 0:06:34]} Kf8 {[%emt 0:00:29]} 37. Qd4 {[%emt 0:00:23]} Ke7 {[%emt 0:00:37]} 38. Kf2 {[%emt 0:00:08]} Nf7 {[%emt 0:01:24]} 39. Ke3 {[%emt 0:00:38]} g5 {[%emt 0:01:23]} 40. g3 {[%emt 0:00:13]} g4 {[%emt 0:32:35]} 41. Bg2 {[%emt 0:30:09]} Nh8 {[%emt 0:00:35]} 42. Kd3 {[%emt 0:00:00]} Ng6 {[%emt 0:00:00]} 43. h3 {[%emt 0:00:00]} h5 {[%emt 0:00:00]} 44. hxg4 {[%emt 0:00:00]} hxg4 {[%emt 0:00:00]} 45. Kc3 {[%emt 0:00:00]} Nf8 {[%emt 0:00:00]} 46. Qg1 {[%emt 0:00:00]} Nd7 {[%emt 0:00:00]} 47. Qh1 {[%emt 0:00:00]} Nxe5 {[%emt 0:00:00]} 48. fxe5 {[%emt 0:00:00]} Qxe5+ {[%emt 0:00:00]} 49. Kc2 {[%emt 0:00:00]} Qe2+ {[%emt 0:00:00]} 50. Kc3 {[%emt 0:00:00]} Qe3+ {[%emt 0:00:00]} 51. Kc2 {[%emt 0:00:00]} Qf2+ {[%emt 0:00:00]} 52. Kd1 {[%emt 0:00:00]} Qxg3 {[%emt 0:00:00]} 53. Bc6 {[%emt 0:00:00]} Qd3+ {[%emt 0:00:00]} 54. Ke1 {[%emt 0:00:00]} Kd6 {[%emt 0:00:00]} 55. Bb7 {[%emt 0:00:00]} Qxc4 {[%emt 0:00:00]} 56. Qh2+ {[%emt 0:00:00]} f4 {[%emt 0:00:00]} 57. Qh4 {[%emt 0:00:00]} Qc1+ {[%emt 0:00:00]} 58. Ke2 {[%emt 0:00:00]} Qe3+ {[%emt 0:00:00]} 59. Kd1 {[%emt 0:00:00]} Qd4+ {[%emt 0:03:10]} 60. Ke1 {[%emt 0:00:00]} Qe5+ {[%emt 0:07:36]} 61. Kd2 {[%emt 0:00:00]} Qd4+ {[%emt 0:02:15]} 62. Kc1 {[%emt 0:00:00]} f3 {[%emt 0:08:56]} 63. Qd8+ {[%emt 0:02:40]} Kc5 {[%emt 0:00:04]} 64. Qe7+ {[%emt 0:00:17]} Kc4 {[%emt 0:05:28]} 65. Ba6+ {[%emt 0:06:21]} Kb3 {[%emt 0:00:09]} 66. Qxe6+ {[%emt 0:00:14]} Kxa4 {[%emt 0:03:06]} 67. Kc2 {[%emt 0:02:51]} Kb4 {[%emt 0:03:07]} 68. Qe1+ {[%emt 0:01:49]} Kc5 {[%emt 0:00:10]} 69. Qe7+ {[%emt 0:00:07]} Qd6 {[%emt 0:02:17]} 70. Qg5+ {[%emt 0:00:17]} Kc6 {[%emt 0:00:58]} 71. Qxg4 {[%emt 0:00:37]} Qc5+ {[%emt 0:00:22]} 72. Kd2 {[%emt 0:00:49]} Qf2+ {[%emt 0:03:45]} 73. Kc3 {[%emt 0:00:18]} Qe1+ {[%emt 0:00:32]} 74. Kc2 {[%emt 0:00:10]} Qf2+ {[%emt 0:01:20]} 75. Kd1 {[%emt 0:00:54]} Kc5 {[%emt 0:00:38]} 76. Qc4+ {[%emt 0:00:12]} Kd6 {[%emt 0:00:07]} 77. Qf4+ {[%emt 0:00:22] Ke5} 1/2-1/2